bitfinex/quotes_ETHUSD_20230105
["timestamp","ask_amount","ask_price","bid_price","bid_amount"]
[1672957575564,36.77754343,1253.2,1253.1,0.2265]
[1672957575877,28.79797343,1253.2,1253.1,0.2265]
[1672957576338,36.77754343,1253.2,1253.1,0.2265]
[1672957576553,28.79797343,1253.2,1253.1,0.2265]
[1672957578255,33.79797343,1253.2,1253.1,0.2265]
[1672957580770,41.77754343,1253.2,1253.1,0.2265]
[1672957584445,36.77754343,1253.2,1253.1,0.2265]
[1672957585134,41.77754343,1253.2,1253.1,0.2265]
[1672957591262,36.77754343,1253.2,1253.1,0.2265]
[1672957592271,41.77754343,1253.2,1253.1,0.2265]
[1672957598110,46.62793865,1253.2,1253.1,0.22292678]
[1672957598275,41.62793865,1253.2,1253.1,0.22292678]
[1672957599702,46.62793865,1253.2,1253.1,0.22292678]
[1672957605841,41.62793865,1253.2,1253.1,0.22292678]
[1672957606262,46.62793865,1253.2,1253.1,0.22292678]
[1672957606702,34.39687343,1253.2,1253.1,0.22292678]
[1672957606939,42.37644343,1253.2,1253.1,0.22292678]
[1672957608188,42.77896226,1253.2,1253.1,0.22292678]
[1672957608359,42.37644343,1253.2,1253.1,0.22292678]
[1672957611092,34.39687343,1253.2,1253.1,0.22292678]
[1672957612189,29.39687343,1253.2,1253.1,0.22292678]
[1672957615467,28.79797343,1253.2,1253.1,0.22292678]
[1672957618229,29.19201548,1253.2,1253.1,0.22292678]
[1672957618544,28.79797343,1253.2,1253.1,0.22292678]
[1672957621380,36.77754343,1253.2,1253.1,0.22292678]
[1672957622538,28.79797343,1253.2,1253.1,0.21951664]
[1672957624695,36.77754343,1253.2,1253.1,0.21951664]
[1672957625583,28.79797343,1253.2,1253.1,0.21951664]
[1672957628176,27.80475637,1253.2,1253.1,0.21951664]
[1672957628740,35.78432637,1253.2,1253.1,0.21951664]
[1672957629175,36.81689879,1253.2,1253.1,0.21951664]
[1672957630685,28.83732879,1253.2,1253.1,0.21951664]
[1672957631280,32.59274755,1253.2,1253.1,0.21951664]
[1672957633431,40.57231755,1253.2,1253.1,0.21951664]
[1672957638955,40.98078738,1253.2,1253.1,0.21951664]
[1672957640051,33.00121738,1253.2,1253.1,0.21951664]
[1672957643192,32.59274755,1253.2,1253.1,0.21951664]
[1672957643403,32.59274755,1253.2,1253.1,0.21581686]
[1672957646579,40.57231755,1253.2,1253.1,0.21581686]
[1672957651144,32.59274755,1253.2,1253.1,0.21581686]
[1672957651367,40.57231755,1253.2,1253.1,0.21581686]
[1672957655315,36.81689879,1253.2,1253.1,0.21581686]
[1672957664008,28.83732879,1253.2,1253.1,0.21581686]
[1672957664703,36.81689879,1253.2,1253.1,0.21581686]
[1672957666035,36.81689879,1253.2,1253.1,0.21361659]
[1672957670911,28.83732879,1253.2,1253.1,0.21361659]
[1672957672573,29.23201363,1253.2,1253.1,0.21361659]
[1672957673187,28.83732879,1253.2,1253.1,0.21361659]
[1672957680270,28.83932879,1253.2,1253.1,0.21361659]
[1672957680485,28.83732879,1253.2,1253.1,0.21361659]
[1672957682729,27.84386944,1253.2,1253.1,0.21361659]
[1672957685309,35.82343944,1253.2,1253.1,0.21361659]
[1672957687399,27.84386944,1253.2,1253.1,0.21361659]
[1672957688364,27.84386944,1253.2,1253.1,0.20966292]
[1672957690206,5.98371712,1253.2,1253.1,0.20966292]
[1672957691617,1.03257242,1253.2,1253.1,0.20966292]
[1672957691837,5.2218733,1253.2,1253.1,0.20966292]
[1672957692529,1.03257242,1253.2,1253.1,0.20966292]
[1672957693347,5.22123244,1253.2,1253.1,0.20966292]
[1672957694250,5.22123244,1253.2,1253.1,8.18986292]
[1672957694460,5.22123244,1253.2,1253.1,10.11579821]
[1672957695290,5.22123244,1253.2,1253.1,2.13559821]
[1672957695622,5.22123244,1253.2,1253.1,2.03659821]
[1672957695928,13.20080244,1253.2,1253.1,2.03659821]
[1672957696117,21.18037244,1253.2,1253.1,2.03659821]
[1672957696297,21.18037244,1253.2,1253.1,0.20966292]
[1672957698403,29.15994244,1253.2,1253.1,0.20966292]
[1672957705332,21.18037244,1253.2,1253.1,0.20966292]
[1672957705543,13.20080244,1253.2,1253.1,0.20966292]
[1672957707669,21.18037244,1253.2,1253.1,0.20966292]
[1672957709327,29.15994244,1253.2,1253.1,0.20966292]
[1672957711532,21.18037244,1253.2,1253.1,0.20966292]
[1672957712425,21.18037244,1253.2,1253.1,0.2074844]
[1672957715231,29.15994244,1253.2,1253.1,0.2074844]
[1672957715857,21.18037244,1253.2,1253.1,0.2074844]
[1672957717035,29.15994244,1253.2,1253.1,0.2074844]
[1672957717422,21.18037244,1253.2,1253.1,0.2074844]
[1672957721891,5.22123244,1253.2,1253.1,8.1876844]
[1672957722201,5.22123244,1253.2,1253.1,17.28565284]
[1672957722369,5.22123244,1253.2,1253.1,9.30545284]
[1672957723018,13.20080244,1253.2,1253.1,1.32525284]
[1672957723358,13.20080244,1253.2,1253.1,1.22625284]
[1672957723724,21.18037244,1253.2,1253.1,0.2074844]
[1672957724094,29.15994244,1253.2,1253.1,0.2074844]
[1672957726310,29.15772033,1253.2,1253.1,0.2074844]
[1672957729445,24.96906031,1253.2,1253.1,0.2074844]
[1672957732777,37.89977501,1253.2,1253.1,0.2074844]
[1672957740033,38.49867501,1253.2,1253.1,0.2074844]
[1672957742330,30.51910501,1253.2,1253.1,0.2074844]
[1672957749340,30.51910501,1253.2,1253.1,0.20500064]
[1672957749805,38.49867501,1253.2,1253.1,0.20500064]
[1672957751078,30.51910501,1253.2,1253.1,0.20500064]
[1672957752153,29.92020501,1253.2,1253.1,0.20500064]
[1672957773745,29.92020501,1253.2,1253.1,0.20248936]
[1672957781111,34.37811402,1253.2,1253.1,0.20248936]
[1672957788051,38.55967666,1253.2,1253.1,0.20248936]
[1672957788232,40.15203601,1253.2,1253.1,0.20248936]
[1672957792452,48.13160601,1253.2,1253.1,0.20248936]
[1672957794553,43.95004337,1253.2,1253.1,0.20248936]
[1672957797234,38.00543932,1253.2,1253.1,0.19933623]
[1672957801334,43.95004337,1253.2,1253.1,0.19933623]
[1672957803121,38.00543932,1253.2,1253.1,0.19933623]
[1672957803586,37.40653932,1253.2,1253.1,0.19933623]
[1672957806927,42.35188618,1253.2,1253.1,0.19933623]
[1672957808113,37.40653932,1253.2,1253.1,0.19933623]
[1672957809959,42.3518528,1253.2,1253.1,0.19933623]
[1672957810646,42.35184863,1253.2,1253.1,0.19933623]
[1672957813487,37.40653932,1253.2,1253.1,0.19933623]
[1672957814785,42.35218024,1253.2,1253.1,0.19933623]
[1672957817140,37.40653932,1253.2,1253.1,0.19933623]
[1672957817993,37.40653932,1253.2,1253.1,0.19556224]
[1672957818989,42.35307599,1253.2,1253.1,0.19556224]
[1672957819474,37.40653932,1253.2,1253.1,0.19556224]
[1672957821976,42.35447386,1253.2,1253.1,0.19556224]
[1672957823185,37.40653932,1253.2,1253.1,0.19556224]
[1672957823856,38.00543932,1253.2,1253.1,0.19556224]
[1672957824764,37.40653932,1253.2,1253.1,0.19556224]
[1672957825351,43.35114337,1253.2,1253.1,0.19556224]
[1672957833149,43.07813644,1253.2,1253.1,0.19556224]
[1672957837952,48.07813644,1253.2,1253.1,0.19556224]
[1672957838101,48.67703644,1253.2,1253.1,0.19556224]
[1672957841255,48.67703644,1253.2,1253.1,0.19288068]
[1672957843797,43.67703644,1253.2,1253.1,0.19288068]
[1672957844826,48.67703644,1253.2,1253.1,0.19288068]
[1672957846233,48.07813644,1253.2,1253.1,0.19288068]
[1672957848624,52.25969908,1253.2,1253.1,0.19288068]
[1672957849103,48.07813644,1253.2,1253.1,0.19288068]
[1672957854041,48.67703644,1253.2,1253.1,0.19288068]
[1672957855048,43.67703644,1253.2,1253.1,0.19288068]
[1672957856023,48.67703644,1253.2,1253.1,0.19288068]
[1672957861950,43.67703644,1253.2,1253.1,0.19288068]
[1672957862995,48.67703644,1253.2,1253.1,0.19288068]
[1672957865435,48.67703644,1253.2,1253.1,0.19053828]
[1672957869024,43.67703644,1253.2,1253.1,0.19053828]
[1672957870120,48.67703644,1253.2,1253.1,0.19053828]
[1672957875439,48.07813644,1253.2,1253.1,0.19053828]
[1672957875926,43.07813644,1253.2,1253.1,0.19053828]
[1672957876917,48.07813644,1253.2,1253.1,0.19053828]
[1672957879231,40.09856644,1253.2,1253.1,0.19053828]
[1672957879772,48.07813644,1253.2,1253.1,0.19053828]
[1672957880106,40.09856644,1253.2,1253.1,0.19053828]
[1672957880317,48.07813644,1253.2,1253.1,0.19053828]
[1672957882674,40.09856644,1253.2,1253.1,0.19053828]
[1672957883042,35.09856644,1253.2,1253.1,0.19053828]
[1672957883383,35.69746644,1253.2,1253.1,0.19053828]
[1672957884036,40.69746644,1253.2,1253.1,0.19053828]
[1672957885680,48.67703644,1253.2,1253.1,0.19053828]
[1672957887739,40.69746644,1253.2,1253.1,0.19053828]
[1672957888478,48.67703644,1253.2,1253.1,0.19053828]
[1672957889000,40.69746644,1253.2,1253.1,0.19053828]
[1672957889399,48.67703644,1253.2,1253.1,0.19053828]
[1672957889594,48.67703644,1253.2,1253.1,0.18802508]
[1672957890085,43.67703644,1253.2,1253.1,0.18802508]
[1672957890936,48.67703644,1253.2,1253.1,0.18802508]
[1672957893277,48.67500137,1253.2,1253.1,0.18802508]
[1672957895111,40.09653137,1253.2,1253.1,0.18802508]
[1672957895418,35.63862236,1253.2,1253.1,0.18802508]
[1672957895627,30.63862236,1253.2,1253.1,0.18802508]
[1672957896984,24.69401831,1253.2,1253.1,0.18802508]
[1672957897243,30.63862236,1253.2,1253.1,0.18802508]
[1672957898028,24.69401831,1253.2,1253.1,0.18802508]
[1672957899858,29.64185661,1253.2,1253.1,0.18802508]
[1672957900247,29.87919068,1253.2,1253.1,0.18802508]
[1672957901707,24.93135238,1253.2,1253.1,0.18802508]
[1672957902275,30.87595643,1253.2,1253.1,0.18802508]
[1672957902485,24.93135238,1253.2,1253.1,0.18802508]
[1672957903286,30.87595643,1253.2,1253.1,0.18802508]
[1672957903569,24.93135238,1253.2,1253.1,0.18802508]
[1672957911933,0.99467745,1253.2,1253.1,0.18802508]
[1672957912143,24.93338745,1253.2,1253.1,0.18802508]
[1672957912407,30.8779915,1253.2,1253.1,0.18802508]
[1672957912780,24.93338745,1253.2,1253.1,0.18802508]
[1672957914057,30.8779915,1253.2,1253.1,0.18802508]
[1672957916053,5.94276056,1253.2,1253.1,0.18802508]
[1672957916258,13.92233056,1253.2,1253.1,0.18802508]
[1672957917022,21.90190056,1253.2,1253.1,0.18802508]
[1672957917455,21.90190056,1253.2,1253.1,0.1850698]
[1672957920086,13.92233056,1253.2,1253.1,0.1850698]
[1672957920452,21.90190056,1253.2,1253.1,0.1850698]
[1672957920707,29.88147056,1253.2,1253.1,0.1850698]
[1672957926281,21.90190056,1253.2,1253.1,0.1850698]
[1672957926449,29.88147056,1253.2,1253.1,0.1850698]
[1672957928755,21.90190056,1253.2,1253.1,0.1850698]
[1672957933683,29.88147056,1253.2,1253.1,0.1850698]
[1672957934319,29.93147056,1253.2,1253.1,0.1850698]
[1672957934529,29.88147056,1253.2,1253.1,0.1850698]
[1672957940796,29.88147056,1253.2,1253.1,0.18208406]
[1672957942592,29.93147056,1253.2,1253.1,0.18208406]
[1672957942806,29.88147056,1253.2,1253.1,0.18208406]
[1672957948749,29.93147056,1253.2,1253.1,0.18208406]
[1672957948962,29.88147056,1253.2,1253.1,0.18208406]
[1672957954566,24.93338745,1253.2,1253.1,0.18208406]
[1672957954723,29.87999227,1253.2,1253.1,0.18208406]
[1672957956669,24.93338745,1253.2,1253.1,0.18208406]
[1672957959028,24.98338745,1253.2,1253.1,0.18208406]
[1672957959237,24.93338745,1253.2,1253.1,0.18208406]
[1672957960953,24.93338745,1253.2,1253.1,0.17810929]
[1672957962041,21.90039854,1253.2,1253.1,0.17810929]
[1672957963673,5.94125854,1253.2,1253.1,0.17810929]
[1672957963897,5.94125854,1253.2,1253.1,8.15830929]
[1672957964141,5.94125854,1253.2,1253.1,8.25730929]
[1672957964463,5.94125854,1253.2,1253.1,0.27710929]
[1672957964676,13.92082854,1253.2,1253.1,0.17810929]
[1672957965471,5.94125854,1253.2,1253.1,0.17810929]
[1672957966887,5.94125854,1253.2,1253.1,8.15830929]
[1672957967027,5.94125854,1253.2,1253.1,8.25730929]
[1672957967467,5.94125854,1253.2,1253.1,0.27710929]
[1672957967678,13.92082854,1253.2,1253.1,0.17810929]
[1672957972205,1.0,1253.1,1253.0,25.96890929]
[1672957972561,1.0,1253.1,1253.0,29.34553022]
[1672957972562,4.18919197,1253.1,1253.0,29.34553022]
[1672957972776,4.18919197,1253.1,1253.0,21.36490022]
[1672957974518,4.13919197,1253.1,1253.0,13.38427022]
[1672957977045,4.13622016,1253.1,1253.0,13.38427022]
[1672957980323,20.09662016,1253.1,1253.0,5.40373022]
[1672957980665,28.07682016,1253.1,1253.0,2.02710929]
[1672957980827,20.09662016,1253.1,1253.0,1.92810929]
[1672957982036,12.11642016,1253.1,1253.0,1.92810929]
[1672957982217,12.11642016,1253.1,1253.0,3.70869422]
[1672957985300,28.07682016,1253.1,1253.0,3.70869422]
[1672957985514,28.07682016,1253.1,1253.0,1.92810929]
[1672957985515,23.9406,1253.1,1253.0,1.92810929]
[1672957987288,28.88718109,1253.1,1253.0,1.92810929]
[1672957988852,36.86738109,1253.1,1253.0,1.92810929]
[1672957991622,28.88718109,1253.1,1253.0,1.92810929]
[1672957991814,31.91812354,1253.1,1253.0,1.92810929]
[1672957994479,26.97154245,1253.1,1253.0,1.92810929]
[1672957994734,23.9406,1253.1,1253.0,1.92810929]
[1672957996129,23.9906,1253.1,1253.0,1.92810929]
[1672957996340,23.9406,1253.1,1253.0,1.92810929]
[1672957998484,28.88718109,1253.1,1253.0,1.92541618]
[1672957999593,23.9406,1253.1,1253.0,1.92541618]
[1672958006221,28.12541811,1253.1,1253.0,1.92541618]
[1672958007955,23.9406,1253.1,1253.0,1.92541618]
[1672958009500,20.14557231,1253.1,1253.0,1.92541618]
[1672958009715,4.18517231,1253.1,1253.0,1.92541618]
[1672958009898,4.18517231,1253.1,1253.0,9.90625618]
[1672958010280,4.18517231,1253.1,1253.0,10.00525618]
[1672958011748,4.18517231,1253.1,1253.0,2.02441618]
[1672958011894,4.18517231,1253.1,1253.0,1.92541618]
[1672958012837,12.16537231,1253.1,1253.0,1.92541618]
[1672958013110,20.90698109,1253.1,1253.0,1.92541618]
[1672958013653,15.9604,1253.1,1253.0,1.92541618]
[1672958014890,20.90698109,1253.1,1253.0,1.92541618]
[1672958015085,15.9604,1253.1,1253.0,1.92541618]
[1672958017626,20.14793692,1253.1,1253.0,1.92541618]
[1672958017797,23.9406,1253.1,1253.0,1.92541618]
[1672958018881,28.88718109,1253.1,1253.0,1.92541618]
[1672958020869,36.86738109,1253.1,1253.0,1.92541618]
[1672958021777,36.86738109,1253.1,1253.0,1.92270309]
[1672958024101,4.94658109,1253.1,1253.0,1.92270309]
[1672958024320,28.88718109,1253.1,1253.0,1.92270309]
[1672958025062,20.90698109,1253.1,1253.0,1.92270309]
[1672958025617,12.92678109,1253.1,1253.0,1.92270309]
[1672958026566,20.90698109,1253.1,1253.0,1.92270309]
[1672958026983,15.9604,1253.1,1253.0,1.92270309]
[1672958027578,20.90698109,1253.1,1253.0,1.92270309]
[1672958028872,15.9604,1253.1,1253.0,1.92270309]
[1672958029253,28.88718109,1253.1,1253.0,1.92270309]
[1672958029482,40.69630654,1253.1,1253.0,1.92270309]
[1672958031594,35.74972545,1253.1,1253.0,1.92270309]
[1672958031750,42.2932295,1253.1,1253.0,1.92270309]
[1672958032823,36.34862545,1253.1,1253.0,1.92270309]
[1672958034766,41.29382116,1253.1,1253.0,1.92270309]
[1672958041787,40.69492116,1253.1,1253.0,1.92270309]
[1672958042531,41.29382116,1253.1,1253.0,1.92270309]
[1672958044934,41.29382116,1253.1,1253.0,1.91879925]
[1672958046106,33.31362116,1253.1,1253.0,1.91879925]
[1672958051976,46.47479214,1253.1,1253.0,1.91879925]
[1672958052724,46.47270294,1253.1,1253.0,1.91879925]
[1672958053278,42.2911403,1253.1,1253.0,1.91879925]
[1672958053542,47.2911403,1253.1,1253.0,1.91879925]
[1672958059959,51.47270294,1253.1,1253.0,1.91879925]
[1672958060117,47.2911403,1253.1,1253.0,1.91879925]
[1672958065199,42.2911403,1253.1,1253.0,1.91879925]
[1672958066242,55.46185245,1253.1,1253.0,1.91879925]
[1672958066989,51.28028981,1253.1,1253.0,1.91879925]
[1672958068256,52.34500235,1253.1,1253.0,1.91879925]
[1672958069621,56.52656499,1253.1,1253.0,1.91879925]
[1672958075368,56.52656499,1253.1,1253.0,1.9166971]
[1672958075618,52.34500235,1253.1,1253.0,1.9166971]
[1672958075835,56.52656499,1253.1,1253.0,1.9166971]
[1672958075976,52.34500235,1253.1,1253.0,1.9166971]
[1672958076458,56.52656499,1253.1,1253.0,1.9166971]
[1672958078942,52.34500235,1253.1,1253.0,1.9166971]
[1672958081083,47.34500235,1253.1,1253.0,1.9166971]
[1672958081505,41.4003983,1253.1,1253.0,1.9166971]
[1672958082029,46.4003983,1253.1,1253.0,1.9166971]
[1672958083442,50.58196094,1253.1,1252.8,0.099]
[1672958083652,50.58196094,1253.1,1252.7,19.2972]
[1672958083653,4.94098789,1252.9,1252.7,19.2972]
[1672958083868,36.11125325,1252.8,1252.7,19.2972]
[1672958084549,36.11125325,1252.8,1252.7,0.099]
[1672958084719,36.11125325,1252.8,1252.6,1.06774316]
[1672958085330,28.13102325,1252.7,1252.6,1.06774316]
[1672958086445,23.94825,1252.7,1252.6,1.06774316]
[1672958086811,28.13102325,1252.7,1252.6,1.06774316]
[1672958088237,28.13102325,1252.7,1252.6,1.01774316]
[1672958091332,50.10505301,1252.7,1252.6,0.62774316]
[1672958091589,53.70415301,1252.7,1252.6,0.03262317]
[1672958092016,52.77496755,1252.7,1252.6,0.03262317]
[1672958092171,58.6949124,1252.7,1252.6,0.03262317]
[1672958094286,52.77496755,1252.7,1252.6,0.03262317]
[1672958095170,9.98344,1252.6,1252.3,12.06944802]
[1672958095319,6.17307162,1252.4,1252.3,12.06944802]
[1672958095536,30.12705162,1252.4,1252.3,0.21294802]
[1672958095869,30.12705162,1252.4,1252.3,0.11394802]
[1672958096221,29.52778561,1252.4,1252.3,0.11394802]
[1672958097005,27.52778561,1252.4,1252.3,0.11394802]
[1672958097237,35.13506921,1252.4,1252.3,0.11394802]
[1672958098685,35.1372669,1252.4,1252.3,0.11394802]
[1672958098951,43.1219269,1252.4,1252.3,0.11394802]
[1672958100429,43.72119291,1252.4,1252.3,0.11394802]
[1672958101478,49.32049291,1252.4,1252.3,0.11394802]
[1672958102108,54.23588685,1252.4,1252.3,0.11394802]
[1672958102252,55.70495009,1252.4,1252.3,0.09379149]
[1672958102465,49.78500524,1252.4,1252.3,0.09379149]
[1672958102680,54.69991605,1252.4,1252.3,0.09379149]
[1672958102887,57.69991605,1252.4,1252.3,0.09379149]
[1672958104619,56.94287965,1252.4,1252.3,0.09379149]
[1672958107928,52.78385495,1252.4,1252.3,0.09379149]
[1672958108138,48.62598054,1252.4,1252.3,0.09379149]
[1672958108373,52.78385495,1252.4,1252.3,0.09379149]
[1672958108606,48.62598054,1252.4,1252.3,0.09379149]
[1672958109018,52.18682661,1252.4,1252.3,0.09379149]
[1672958109455,52.78385495,1252.4,1252.3,0.09379149]
[1672958109776,56.94287965,1252.4,1252.3,0.09379149]
[1672958109947,52.78500524,1252.4,1252.3,0.09379149]
[1672958110350,48.62598054,1252.4,1252.3,0.09379149]
[1672958110557,52.18603034,1252.4,1252.3,0.09379149]
[1672958111939,57.17287965,1252.4,1252.3,0.09379149]
[1672958113557,2.0,1252.3,1252.0,19.36737916]
[1672958113770,28.11258441,1252.1,1252.0,19.36737916]
[1672958113959,28.11258441,1252.1,1252.0,1.10857916]
[1672958114149,28.11258441,1252.1,1252.0,1.00957916]
[1672958114663,25.73953046,1252.1,1252.0,1.00957916]
[1672958116272,28.11258441,1252.1,1252.0,1.00957916]
[1672958116480,25.73953046,1252.1,1252.0,1.00957916]
[1672958117317,29.35986224,1252.1,1252.0,1.00957916]
[1672958119254,13.38670224,1252.1,1252.0,1.00957916]
[1672958119425,1.77906657,1252.1,1252.0,1.00957916]
[1672958120996,17.75222657,1252.1,1252.0,1.00957916]
[1672958122990,9.76564657,1252.1,1252.0,1.00957916]
[1672958123445,1.77906657,1252.1,1252.0,1.00957916]
[1672958124291,4.15212052,1252.1,1252.0,1.00957916]
[1672958126163,2.37525164,1252.1,1252.0,1.00957916]
[1672958126811,2.37305395,1252.1,1252.0,1.00957916]
[1672958126982,2.37305395,1252.1,1252.0,1.9390859]
[1672958127340,13.39135138,1252.2,1252.0,1.9390859]
[1672958127554,2.37305395,1252.1,1252.0,9.9262959]
[1672958127762,2.37305395,1252.1,1252.0,10.0252959]
[1672958127938,2.37305395,1252.1,1252.0,2.0380859]
[1672958128146,2.37305395,1252.1,1252.0,1.9390859]
[1672958128790,5.33937138,1252.1,1252.0,1.9390859]
[1672958128982,21.31253138,1252.1,1252.0,1.9390859]
[1672958129192,21.31253138,1252.1,1252.0,1.00957916]
[1672958130057,18.93947743,1252.1,1252.0,1.00957916]
[1672958130319,15.97316,1252.1,1252.0,1.00957916]
[1672958130807,7.98658,1252.1,1252.0,1.00957916]
[1672958131658,10.9678968,1252.1,1252.0,1.00957916]
[1672958132442,7.98658,1252.1,1252.0,1.00957916]
[1672958132550,11.54616092,1252.1,1252.0,2.7378519]
[1672958132761,11.61156092,1252.2,1252.0,10.7250719]
[1672958132971,2.98264083,1252.1,1252.0,10.8240719]
[1672958133244,2.98264083,1252.1,1252.0,2.8368519]
[1672958133467,27.58416092,1252.2,1252.0,2.7378519]
[1672958133673,27.51816092,1252.2,1252.0,2.7378519]
[1672958133814,2.9826761,1252.1,1252.0,2.7378519]
[1672958134337,3.55958092,1252.1,1252.0,2.7378519]
[1672958134904,3.55958092,1252.1,1252.0,10.7250719]
[1672958135116,3.55958092,1252.1,1252.0,10.8240719]
[1672958136011,3.55958092,1252.1,1252.0,2.8368519]
[1672958136187,3.55958092,1252.1,1252.0,2.7378519]
[1672958140150,11.54616092,1252.1,1252.0,2.73443195]
[1672958140631,3.55958092,1252.1,1252.0,2.73443195]
[1672958145259,4.15787441,1252.1,1252.0,2.73443195]
[1672958145625,28.18250441,1252.2,1252.0,2.73443195]
[1672958145841,3.58366348,1252.1,1252.0,2.73443195]
[1672958147197,3.58366348,1252.1,1252.0,1.00615921]
[1672958150727,19.5565667,1252.1,1252.0,1.00615921]
[1672958150876,11.5699867,1252.1,1252.0,1.00615921]
[1672958151087,7.98658,1252.1,1252.0,1.00615921]
[1672958151357,3.58339853,1252.1,1252.0,1.00615921]
[1672958151507,7.98658,1252.1,1252.0,1.00615921]
[1672958151882,11.57000308,1252.1,1252.0,1.00615921]
[1672958156148,3.5843374,1252.1,1252.0,16.98059921]
[1672958156336,3.5843374,1252.1,1252.0,1.10515921]
[1672958156556,3.5843374,1252.1,1252.0,1.00615921]
[1672958161017,3.5843374,1252.1,1252.0,8.99337921]
[1672958161329,3.5843374,1252.1,1252.0,1.10515921]
[1672958161541,3.5843374,1252.1,1252.0,1.00615921]
[1672958162334,3.5843374,1252.1,1252.0,8.99337921]
[1672958162547,3.5843374,1252.1,1252.0,9.09237921]
[1672958164267,3.5843374,1252.1,1252.0,9.08890742]
[1672958175119,3.5843374,1252.1,1252.0,1.10168742]
[1672958175296,20.7975721,1252.2,1252.0,1.00268742]
[1672958175504,5.58655289,1252.1,1252.0,1.00268742]
[1672958176063,5.58650783,1252.1,1252.0,1.00268742]
[1672958177123,3.58650783,1252.1,1252.0,1.00268742]
[1672958177901,12.8114521,1252.2,1252.0,8.98990742]
[1672958178178,3.58646931,1252.1,1252.0,9.08890742]
[1672958178324,20.7976321,1252.2,1252.0,9.08890742]
[1672958178532,20.7316321,1252.2,1252.0,9.08890742]
[1672958178742,3.58667417,1252.1,1252.0,9.08890742]
[1672958179006,28.7838121,1252.2,1252.0,9.08890742]
[1672958179217,24.10150439,1252.2,1252.0,9.08890742]
[1672958180740,32.08768439,1252.2,1252.0,1.10168742]
[1672958180950,6.65787441,1252.1,1252.0,1.00268742]
[1672958181196,22.62744026,1252.1,1252.0,1.00268742]
[1672958182794,6.65428026,1252.1,1252.0,1.00268742]
[1672958183004,16.63992769,1252.2,1252.0,1.00268742]
[1672958183154,16.57392769,1252.2,1252.0,1.00268742]
[1672958183365,3.58644119,1252.1,1252.0,1.00268742]
[1672958183627,2.5,1252.1,1252.0,1.00268742]
[1672958183886,10.48658,1252.1,1252.0,1.00268742]
[1672958184449,2.5,1252.1,1252.0,1.00268742]
[1672958185425,6.08646642,1252.1,1252.0,1.00268742]
[1672958185748,2.5,1252.1,1252.0,1.00268742]
[1672958186321,28.81017762,1252.2,1252.0,1.00268742]
[1672958186596,2.0,1252.1,1252.0,1.00268742]
[1672958187739,28.81017762,1252.2,1252.0,1.00268742]
[1672958187954,2.0,1252.1,1252.0,1.00268742]
[1672958189790,20.82395762,1252.2,1252.0,8.98990742]
[1672958190005,4.78580762,1252.2,1252.0,9.08890742]
[1672958190364,4.18420993,1252.1,1252.0,1.10168742]
[1672958190584,6.18420993,1252.1,1252.0,1.00268742]
[1672958191957,20.22453762,1252.2,1252.0,1.00268742]
[1672958192172,2.0,1252.1,1252.0,1.00268742]
[1672958192337,3.5865412,1252.1,1252.0,1.00268742]
[1672958192548,5.5865412,1252.1,1252.0,1.00268742]
[1672958192744,5.58659922,1252.1,1252.0,1.00268742]
[1672958192955,20.22453762,1252.2,1252.0,1.00268742]
[1672958193284,2.0,1252.1,1252.0,1.00268742]
[1672958193495,23.59696646,1252.2,1252.0,1.00268742]
[1672958193710,2.0,1252.1,1252.0,1.00268742]
[1672958193954,20.22453762,1252.2,1252.0,1.00268742]
[1672958194116,28.14478762,1252.2,1252.0,1.00268742]
[1672958194328,20.15853762,1252.2,1252.0,8.98990742]
[1672958194534,20.15853762,1252.2,1252.0,9.08890742]
[1672958195938,28.14478762,1252.2,1252.0,1.10168742]
[1672958196151,4.18420993,1252.1,1252.0,1.00268742]
[1672958196318,20.15736993,1252.1,1252.0,1.00268742]
[1672958196777,12.17078993,1252.1,1252.0,1.00268742]
[1672958202043,12.17078993,1252.1,1252.0,1.00024944]
[1672958203722,6.18420993,1252.1,1252.0,1.00024944]
[1672958206239,2.0,1252.1,1252.0,1.00024944]
[1672958206454,6.18420993,1252.1,1252.0,1.00024944]
[1672958208802,4.18420993,1252.1,1252.0,1.00024944]
[1672958209302,2.0,1252.1,1252.0,1.00024944]
[1672958209510,6.18420993,1252.1,1252.0,1.00024944]
[1672958209720,2.0,1252.1,1252.0,1.00024944]
[1672958211022,6.18420993,1252.1,1252.0,1.00024944]
[1672958211190,14.17078993,1252.1,1252.0,1.00024944]
[1672958212824,6.18420993,1252.1,1252.0,1.00024944]
[1672958214910,14.17078993,1252.1,1252.0,1.00024944]
[1672958215118,34.38726965,1252.1,1252.0,1.00024944]
[1672958215311,21.48577884,1252.1,1252.0,1.00024944]
[1672958216699,25.66793934,1252.1,1252.0,1.00024944]
[1672958217664,22.08517884,1252.1,1252.0,1.00024944]
[1672958217810,34.25385354,1252.1,1252.0,1.00024944]
[1672958222304,34.25385354,1252.1,1252.0,0.99682655]
[1672958222517,43.12006922,1252.1,1252.0,0.99682655]
[1672958223039,30.95139452,1252.1,1252.0,0.99682655]
[1672958224100,35.13223936,1252.1,1252.0,0.99682655]
[1672958226673,35.13423936,1252.1,1252.0,0.99682655]
[1672958226981,35.13223936,1252.1,1252.0,0.99682655]
[1672958229578,9.17249936,1252.1,1252.0,0.99682655]
[1672958229747,5.65988052,1252.1,1252.0,0.99682655]
[1672958229963,5.06048052,1252.1,1252.0,0.99682655]
[1672958230632,13.04706052,1252.1,1252.0,0.99682655]
[1672958230801,5.06048052,1252.1,1252.0,0.99682655]
[1672958231005,5.06048052,1252.1,1252.0,8.98404655]
[1672958231305,5.06048052,1252.1,1252.0,9.08304655]
[1672958231938,5.06048052,1252.1,1252.0,1.09582655]
[1672958232199,5.06048052,1252.1,1252.0,0.99682655]
[1672958234428,13.04706052,1252.1,1252.0,0.99682655]
[1672958236613,13.04906052,1252.1,1252.0,0.99682655]
[1672958236780,13.04706052,1252.1,1252.0,0.99682655]
[1672958243230,5.06048052,1252.1,1252.0,0.99682655]
[1672958244014,13.04706052,1252.1,1252.0,0.99682655]
[1672958244316,5.06048052,1252.1,1252.0,0.99682655]
[1672958244587,13.04706052,1252.1,1252.0,0.99682655]
[1672958247178,13.04706052,1252.1,1252.0,0.99423262]
[1672958247407,16.44729842,1252.1,1252.0,0.99423262]
[1672958247632,8.46071842,1252.1,1252.0,0.99423262]
[1672958247847,5.06048052,1252.1,1252.0,0.99423262]
[1672958248544,13.04706052,1252.1,1252.0,0.99423262]
[1672958249362,21.03364052,1252.1,1252.0,0.99423262]
[1672958250138,13.04706052,1252.1,1252.0,0.99423262]
[1672958257461,5.06048052,1252.1,1252.0,0.99423262]
[1672958258317,13.04706052,1252.1,1252.0,0.99423262]
[1672958258527,5.06048052,1252.1,1252.0,0.99423262]
[1672958263722,13.04706052,1252.1,1252.0,0.99423262]
[1672958264401,5.06048052,1252.1,1252.0,0.99423262]
[1672958264610,13.04706052,1252.1,1252.0,0.99423262]
[1672958266100,13.78112649,1252.1,1252.0,0.99423262]
[1672958266455,17.18137239,1252.1,1252.0,0.99423262]
[1672958266820,16.44957821,1252.1,1252.0,0.99423262]
[1672958267070,16.44959167,1252.1,1252.0,0.99423262]
[1672958267796,16.44978135,1252.1,1252.0,0.99423262]